[Event "Betsys MČR v online bleskovém šachu 2021"]
[Site "Chess.com"]
[Date "2021.04.17"]
[Round "10"]
[White "DrStillestein"]
[Black "DiscoSTU666"]
[Result "1-0"]
[WhiteElo "2105"]
[BlackElo "1878"]
[TimeControl "180+1"]
[EndTime "10:40:39 PDT"]
[Termination "Uživatel DrStillestein zvítězil na čas"]

1. e4 {[%clk 0:03:00.9]} 1... c5 {[%clk 0:02:58.5]} 2. Nf3 {[%clk 0:03:01.4]}
2... d6 {[%clk 0:02:57.9]} 3. c3 {[%clk 0:03:01.9]} 3... Nf6 {[%clk 0:02:56.3]}
4. Be2 {[%clk 0:03:02.5]} 4... Bd7 {[%clk 0:02:56.1]} 5. d3 {[%clk 0:03:01.1]}
5... Nc6 {[%clk 0:02:54.9]} 6. O-O {[%clk 0:03:01.3]} 6... e5 {[%clk 0:02:54.9]}
7. Bg5 {[%clk 0:02:58]} 7... g6 {[%clk 0:02:50.8]} 8. Nbd2 {[%clk 0:02:54.7]}
8... Bg7 {[%clk 0:02:50.1]} 9. Nc4 {[%clk 0:02:54.4]} 9... Qc7 {[%clk
0:02:38.7]} 10. Ne3 {[%clk 0:02:45.8]} 10... Be6 {[%clk 0:02:32.4]} 11. Bxf6
{[%clk 0:02:27.9]} 11... Bxf6 {[%clk 0:02:30.7]} 12. c4 {[%clk 0:02:22.7]} 12...
O-O {[%clk 0:02:22.6]} 13. Nd2 {[%clk 0:02:17.5]} 13... Nd4 {[%clk 0:02:16.6]}
14. Nb3 {[%clk 0:02:13.7]} 14... Bg7 {[%clk 0:01:56.8]} 15. Nxd4 {[%clk
0:02:10.4]} 15... cxd4 {[%clk 0:01:42.6]} 16. Nc2 {[%clk 0:02:05.9]} 16... f5
{[%clk 0:01:32.5]} 17. f3 {[%clk 0:02:02.6]} 17... fxe4 {[%clk 0:01:24.2]} 18.
fxe4 {[%clk 0:02:02.1]} 18... Qe7 {[%clk 0:01:20.3]} 19. Qd2 {[%clk 0:02:00.4]}
19... Qh4 {[%clk 0:01:17.2]} 20. Rxf8+ {[%clk 0:01:53]} 20... Rxf8 {[%clk
0:01:15.5]} 21. Rf1 {[%clk 0:01:53.9]} 21... Rxf1+ {[%clk 0:01:09.1]} 22. Bxf1
{[%clk 0:01:53.7]} 22... Bh6 {[%clk 0:01:09.6]} 23. Qf2 {[%clk 0:01:50.7]} 23...
Qg5 {[%clk 0:01:00.5]} 24. Qe1 {[%clk 0:01:41.1]} 24... Qh5 {[%clk 0:00:40.8]}
25. Be2 {[%clk 0:01:37.5]} 25... Bg4 {[%clk 0:00:40.7]} 26. Bxg4 {[%clk
0:01:33.3]} 26... Qxg4 {[%clk 0:00:40]} 27. h3 {[%clk 0:01:28.1]} 27... Qh5
{[%clk 0:00:36.2]} 28. Qf1 {[%clk 0:01:24]} 28... Be3+ {[%clk 0:00:21.1]} 29.
Kh1 {[%clk 0:01:16.5]} 29... Qg5 {[%clk 0:00:20.8]} 30. Nb4 {[%clk 0:01:12.6]}
30... Qg3 {[%clk 0:00:13.7]} 31. Nd5 {[%clk 0:01:10.8]} 31... Bf4 {[%clk
0:00:11.1]} 32. Nxf4 {[%clk 0:01:09.1]} 32... exf4 {[%clk 0:00:11.1]} 33. Kg1
{[%clk 0:01:04.7]} 33... Qe3+ {[%clk 0:00:09.7]} 34. Kh1 {[%clk 0:01:02.2]}
34... Qg3 {[%clk 0:00:09.4]} 35. Qf3 {[%clk 0:01:02]} 35... Kf7 {[%clk
0:00:06.3]} 36. Qxg3 {[%clk 0:00:59.6]} 36... fxg3 {[%clk 0:00:05.3]} 37. Kg1
{[%clk 0:01:00.1]} 37... Kf6 {[%clk 0:00:05]} 38. Kf1 {[%clk 0:01:00.7]} 38...
Kg5 {[%clk 0:00:04]} 39. Ke2 {[%clk 0:01:00.4]} 39... Kf4 {[%clk 0:00:03.6]} 40.
b3 {[%clk 0:00:56.1]} 40... g5 {[%clk 0:00:02.5]} 41. b4 {[%clk 0:00:55.2]}
41... h5 {[%clk 0:00:03.4]} 42. a4 {[%clk 0:00:55]} 42... g4 {[%clk 0:00:03.3]}
43. h4 {[%clk 0:00:45.3]} 1-0

[Event "Betsys MČR v online bleskovém šachu 2021"]
[Site "Chess.com"]
[Date "2021.04.17"]
[Round "10"]
[White "elftom"]
[Black "Bavorak15"]
[Result "1-0"]
[WhiteElo "1969"]
[BlackElo "1627"]
[TimeControl "180+1"]
[EndTime "10:40:40 PDT"]
[Termination "Uživatel elftom zvítězil na čas"]

1. c4 {[%clk 0:02:59.7]} 1... Nf6 {[%clk 0:02:59.5]} 2. Nc3 {[%clk 0:02:59]}
2... g6 {[%clk 0:02:59.8]} 3. e4 {[%clk 0:02:58.4]} 3... d6 {[%clk 0:02:59]} 4.
g3 {[%clk 0:02:58.5]} 4... Bg7 {[%clk 0:02:59.1]} 5. Bg2 {[%clk 0:02:59]} 5...
O-O {[%clk 0:02:59]} 6. Nge2 {[%clk 0:02:59.4]} 6... e5 {[%clk 0:02:52.2]} 7. d3
{[%clk 0:02:58]} 7... Nh5 {[%clk 0:02:26]} 8. h3 {[%clk 0:02:45.2]} 8... c6
{[%clk 0:02:24.8]} 9. O-O {[%clk 0:02:42.1]} 9... f5 {[%clk 0:02:23.5]} 10. exf5
{[%clk 0:02:41.4]} 10... Bxf5 {[%clk 0:02:24.3]} 11. g4 {[%clk 0:02:40.8]} 11...
Qh4 {[%clk 0:01:31.8]} 12. gxf5 {[%clk 0:02:06.4]} 12... Rxf5 {[%clk 0:01:27.1]}
13. Be3 {[%clk 0:01:52.2]} 13... Nd7 {[%clk 0:01:22.5]} 14. Kh2 {[%clk
0:01:51.9]} 14... Raf8 {[%clk 0:01:14.6]} 15. Ng3 {[%clk 0:01:50.8]} 15... R5f7
{[%clk 0:01:05.9]} 16. Nxh5 {[%clk 0:01:50.1]} 16... gxh5 {[%clk 0:01:02.5]} 17.
Qe2 {[%clk 0:01:43]} 17... e4 {[%clk 0:00:56.6]} 18. Nxe4 {[%clk 0:01:41.4]}
18... Be5+ {[%clk 0:00:56.8]} 19. Ng3 {[%clk 0:01:27.6]} 19... Rg7 {[%clk
0:00:46.1]} 20. Kh1 {[%clk 0:01:05.8]} 20... Rxg3 {[%clk 0:00:32.4]} 21. fxg3
{[%clk 0:01:04.7]} 21... Qxg3 {[%clk 0:00:33.3]} 22. Rxf8+ {[%clk 0:00:56.4]}
22... Nxf8 {[%clk 0:00:31.6]} 23. Kg1 {[%clk 0:00:46.5]} 23... Ng6 {[%clk
0:00:17.4]} 24. Qf3 {[%clk 0:00:44.6]} 24... Qh2+ {[%clk 0:00:06.5]} 25. Kf2
{[%clk 0:00:44.5]} 25... Nh4 {[%clk 0:00:07.1]} 26. Qe4 {[%clk 0:00:07.8]} 26...
Qg3+ {[%clk 0:00:03]} 27. Kf1 {[%clk 0:00:06.5]} 27... Nxg2 {[%clk 0:00:02.3]}
28. Qxg2 {[%clk 0:00:06]} 1-0

[Event "Betsys MČR v online bleskovém šachu 2021"]
[Site "Chess.com"]
[Date "2021.04.17"]
[Round "10"]
[White "Kokos3"]
[Black "Dan1612"]
[Result "1/2-1/2"]
[WhiteElo "1595"]
[BlackElo "1972"]
[TimeControl "180+1"]
[EndTime "10:40:41 PDT"]
[Termination "Remíza dohodou"]

1. e4 {[%clk 0:03:00.9]} 1... c5 {[%clk 0:02:58.4]} 2. Nf3 {[%clk 0:02:58]} 2...
Nc6 {[%clk 0:02:57.4]} 3. d3 {[%clk 0:02:57.7]} 3... d6 {[%clk 0:02:53.7]} 4.
Nbd2 {[%clk 0:02:54.8]} 4... Nf6 {[%clk 0:02:52.4]} 5. b3 {[%clk 0:02:54.7]}
5... e5 {[%clk 0:02:51.5]} 6. Bb2 {[%clk 0:02:49.4]} 6... Be7 {[%clk 0:02:51.9]}
7. Be2 {[%clk 0:02:48]} 7... O-O {[%clk 0:02:51.2]} 8. O-O {[%clk 0:02:47.4]}
8... Nh5 {[%clk 0:02:47.2]} 9. Nc4 {[%clk 0:02:40]} 9... Nf4 {[%clk 0:02:46.2]}
10. Re1 {[%clk 0:02:35.7]} 10... b5 {[%clk 0:02:41.9]} 11. Ne3 {[%clk
0:02:31.8]} 11... Be6 {[%clk 0:02:37.2]} 12. Bf1 {[%clk 0:02:30.4]} 12... Nd4
{[%clk 0:02:32.3]} 13. Nxd4 {[%clk 0:02:25.8]} 13... cxd4 {[%clk 0:02:29.3]} 14.
Nf5 {[%clk 0:02:12.7]} 14... g6 {[%clk 0:02:23.2]} 15. Ng3 {[%clk 0:02:11.7]}
15... Qd7 {[%clk 0:02:17.6]} 16. c4 {[%clk 0:02:08.4]} 16... bxc4 {[%clk
0:02:15]} 17. bxc4 {[%clk 0:02:06.5]} 17... h5 {[%clk 0:02:13.8]} 18. Ne2 {[%clk
0:02:03.9]} 18... Bg4 {[%clk 0:02:01.3]} 19. Qd2 {[%clk 0:02:00.6]} 19... Bg5
{[%clk 0:01:58.6]} 20. Nxf4 {[%clk 0:01:59.6]} 20... Bxf4 {[%clk 0:01:58.4]} 21.
Qc2 {[%clk 0:01:58.9]} 21... Rab8 {[%clk 0:01:51.7]} 22. g3 {[%clk 0:01:51.6]}
22... Bg5 {[%clk 0:01:49.6]} 23. Bg2 {[%clk 0:01:50.2]} 23... f5 {[%clk
0:01:42.1]} 24. f3 {[%clk 0:01:48.2]} 24... Be3+ {[%clk 0:01:37.8]} 25. Kh1
{[%clk 0:01:45.8]} 25... fxe4 {[%clk 0:01:36.8]} 26. fxg4 {[%clk 0:01:45.3]}
26... exd3 {[%clk 0:01:37.3]} 27. Qxd3 {[%clk 0:01:44.5]} 27... Rxb2 {[%clk
0:01:37.1]} 28. Re2 {[%clk 0:01:38.7]} 28... Rxe2 {[%clk 0:01:33.3]} 29. Qxe2
{[%clk 0:01:38.5]} 29... Qxg4 {[%clk 0:01:31.7]} 30. Qxg4 {[%clk 0:01:36.7]}
30... hxg4 {[%clk 0:01:32.6]} 31. Be4 {[%clk 0:01:31.7]} 31... Kg7 {[%clk
0:01:31.3]} 32. Rb1 {[%clk 0:01:29.7]} 32... Rf7 {[%clk 0:01:28.6]} 33. Kg2
{[%clk 0:01:27.2]} 33... Rf2+ {[%clk 0:01:27.2]} 34. Kh1 {[%clk 0:01:26.7]}
34... Rxa2 {[%clk 0:01:27.1]} 35. Bd5 {[%clk 0:01:21.7]} 35... d3 {[%clk
0:01:23.7]} 36. c5 {[%clk 0:01:19.3]} 36... Bxc5 {[%clk 0:01:22.2]} 37. Bxa2
{[%clk 0:01:18.4]} 37... e4 {[%clk 0:01:17.6]} 38. Bd5 {[%clk 0:01:16.5]} 38...
e3 {[%clk 0:01:16.1]} 39. Kg2 {[%clk 0:01:12.2]} 39... e2 {[%clk 0:01:12.1]} 40.
Bc4 {[%clk 0:01:07.2]} 40... d5 {[%clk 0:01:10.2]} 41. Bxd3 {[%clk 0:01:06.7]}
41... a5 {[%clk 0:01:10.3]} 42. Bxe2 {[%clk 0:01:06.4]} 42... a4 {[%clk
0:01:11.2]} 43. Bb5 {[%clk 0:01:05.1]} 43... a3 {[%clk 0:01:11.1]} 44. Bd7
{[%clk 0:01:03]} 44... Bd4 {[%clk 0:01:09.7]} 45. Bxg4 {[%clk 0:00:53.7]} 45...
a2 {[%clk 0:01:09.4]} 46. Rd1 {[%clk 0:00:42.4]} 46... Bc3 {[%clk 0:01:03.1]}
47. Be6 {[%clk 0:00:37.1]} 47... a1=Q {[%clk 0:00:52.5]} 48. Rxa1 {[%clk
0:00:36.4]} 48... Bxa1 {[%clk 0:00:52.8]} 49. Bxd5 {[%clk 0:00:36.5]} 49... Kf6
{[%clk 0:00:53.2]} 50. Bf3 {[%clk 0:00:36.4]} 50... g5 {[%clk 0:00:53]} 51. h4
{[%clk 0:00:35.9]} 51... gxh4 {[%clk 0:00:51.4]} 52. gxh4 {[%clk 0:00:35.4]}
52... Kg6 {[%clk 0:00:50.2]} 53. Kh3 {[%clk 0:00:32.4]} 53... Kh6 {[%clk
0:00:48.2]} 54. h5 {[%clk 0:00:32.1]} 54... Bf6 {[%clk 0:00:48.2]} 55. Kg4
{[%clk 0:00:31.4]} 55... Bg5 {[%clk 0:00:49.1]} 56. Be4 {[%clk 0:00:30.9]} 56...
Bc1 {[%clk 0:00:50]} 57. Bg6 {[%clk 0:00:30.7]} 57... Ba3 {[%clk 0:00:50.9]} 58.
Be8 {[%clk 0:00:30.7]} 58... Bc5 {[%clk 0:00:51.8]} 59. Bg6 {[%clk 0:00:31]}
59... Ba7 {[%clk 0:00:52.7]} 60. Be8 {[%clk 0:00:31.3]} 60... Bb8 {[%clk
0:00:53.6]} 61. Bg6 {[%clk 0:00:31.2]} 61... Bc7 {[%clk 0:00:52.7]} 62. Be8
{[%clk 0:00:30.1]} 1/2-1/2

[Event "Betsys MČR v online bleskovém šachu 2021"]
[Site "Chess.com"]
[Date "2021.04.17"]
[Round "10"]
[White "Paulz64"]
[Black "TerezaRodshtein"]
[Result "1-0"]
[WhiteElo "2477"]
[BlackElo "2175"]
[TimeControl "180+1"]
[EndTime "10:40:43 PDT"]
[Termination "Uživatel Paulz64 zvítězil po vzdání soupeře"]

1. d4 {[%clk 0:03:00.9]} 1... d5 {[%clk 0:02:59.4]} 2. c4 {[%clk 0:03:01.1]}
2... c6 {[%clk 0:02:59.4]} 3. Nf3 {[%clk 0:03:00.8]} 3... Nf6 {[%clk 0:02:58.9]}
4. Qc2 {[%clk 0:03:01.2]} 4... Bg4 {[%clk 0:02:54.7]} 5. Ne5 {[%clk 0:02:57.1]}
5... Bh5 {[%clk 0:02:49.4]} 6. Qb3 {[%clk 0:02:57.3]} 6... Qb6 {[%clk
0:02:45.2]} 7. Qh3 {[%clk 0:02:57.3]} 7... Na6 {[%clk 0:02:24.2]} 8. e3 {[%clk
0:02:42.9]} 8... e6 {[%clk 0:02:07.7]} 9. g4 {[%clk 0:02:29]} 9... Nb4 {[%clk
0:01:42.5]} 10. Na3 {[%clk 0:02:22.5]} 10... Bg6 {[%clk 0:01:40.3]} 11. Nxg6
{[%clk 0:02:22.4]} 11... fxg6 {[%clk 0:01:40.5]} 12. g5 {[%clk 0:02:21.9]} 12...
Ne4 {[%clk 0:01:31.5]} 13. Qxe6+ {[%clk 0:02:21.6]} 13... Be7 {[%clk 0:01:31]}
14. f4 {[%clk 0:01:59.8]} 14... Qa5 {[%clk 0:01:28.5]} 15. Ke2 {[%clk
0:01:38.5]} 15... Rf8 {[%clk 0:01:11]} 16. Bg2 {[%clk 0:01:13.8]} 16... Nd6
{[%clk 0:00:44.1]} 17. Bd2 {[%clk 0:00:49.5]} 17... Qa4 {[%clk 0:00:16]} 18.
Rhc1 {[%clk 0:00:28.4]} 18... Rd8 {[%clk 0:00:14.2]} 19. cxd5 {[%clk 0:00:20]}
19... Nxd5 {[%clk 0:00:12]} 20. Bxd5 {[%clk 0:00:18.3]} 20... cxd5 {[%clk
0:00:11.9]} 21. Rc7 {[%clk 0:00:18.3]} 21... Rd7 {[%clk 0:00:12.2]} 22. Rxd7
{[%clk 0:00:17]} 22... Qxd7 {[%clk 0:00:13.1]} 23. Qxd7+ {[%clk 0:00:17.3]}
23... Kxd7 {[%clk 0:00:13.4]} 24. Rc1 {[%clk 0:00:18.1]} 24... Nf5 {[%clk
0:00:12.9]} 25. Nb5 {[%clk 0:00:16.6]} 25... Bd8 {[%clk 0:00:11.2]} 26. Nxa7
{[%clk 0:00:15.3]} 26... Bb6 {[%clk 0:00:10.6]} 27. Nb5 {[%clk 0:00:15.3]} 27...
Re8 {[%clk 0:00:10.9]} 28. Kd3 {[%clk 0:00:14.7]} 28... Nd6 {[%clk 0:00:09.1]}
29. Nc3 {[%clk 0:00:12.7]} 29... Ne4 {[%clk 0:00:07.4]} 30. Nxd5 {[%clk
0:00:11.5]} 30... Kd6 {[%clk 0:00:06.2]} 31. Nxb6 {[%clk 0:00:11.1]} 31... Nxd2
{[%clk 0:00:05.6]} 32. Kxd2 {[%clk 0:00:09.2]} 1-0

[Event "Betsys MČR v online bleskovém šachu 2021"]
[Site "Chess.com"]
[Date "2021.04.17"]
[Round "10"]
[White "Johanna94"]
[Black "Miky2610"]
[Result "1-0"]
[WhiteElo "2070"]
[BlackElo "1821"]
[TimeControl "180+1"]
[EndTime "10:40:43 PDT"]
[Termination "Uživatel Johanna94 zvítězil matem"]

1. d4 {[%clk 0:03:00.9]} 1... c6 {[%clk 0:02:59.8]} 2. c4 {[%clk 0:03:01]} 2...
d5 {[%clk 0:02:59.3]} 3. Nf3 {[%clk 0:03:01.3]} 3... Nf6 {[%clk 0:02:58.5]} 4.
Nc3 {[%clk 0:03:01.3]} 4... e6 {[%clk 0:02:55.8]} 5. Bg5 {[%clk 0:03:01.1]} 5...
Be7 {[%clk 0:02:55.5]} 6. e3 {[%clk 0:03:01.1]} 6... O-O {[%clk 0:02:55.5]} 7.
Qc2 {[%clk 0:03:01.2]} 7... Nbd7 {[%clk 0:02:54.4]} 8. Rd1 {[%clk 0:03:00.6]}
8... a6 {[%clk 0:02:49.5]} 9. a3 {[%clk 0:03:00.7]} 9... b5 {[%clk 0:02:48.2]}
10. c5 {[%clk 0:02:57.5]} 10... a5 {[%clk 0:02:43.8]} 11. Bd3 {[%clk 0:02:53.2]}
11... b4 {[%clk 0:02:30.5]} 12. Na4 {[%clk 0:02:41.9]} 12... Ba6 {[%clk
0:02:25.8]} 13. O-O {[%clk 0:02:40.5]} 13... Bxd3 {[%clk 0:02:24.9]} 14. Qxd3
{[%clk 0:02:40.4]} 14... Ne4 {[%clk 0:02:21.4]} 15. Bf4 {[%clk 0:02:38]} 15...
g5 {[%clk 0:02:09]} 16. Bg3 {[%clk 0:02:35.6]} 16... Nxg3 {[%clk 0:02:05.6]} 17.
fxg3 {[%clk 0:02:34.4]} 17... Kh8 {[%clk 0:02:05.2]} 18. Rf2 {[%clk 0:02:08.1]}
18... f5 {[%clk 0:02:04.8]} 19. Rdf1 {[%clk 0:02:02]} 19... Rg8 {[%clk
0:01:57.7]} 20. Ne5 {[%clk 0:01:52.1]} 20... Nxe5 {[%clk 0:01:56.4]} 21. dxe5
{[%clk 0:01:52.5]} 21... bxa3 {[%clk 0:01:37.7]} 22. bxa3 {[%clk 0:01:51.4]}
22... Rb8 {[%clk 0:01:36.3]} 23. g4 {[%clk 0:01:51]} 23... fxg4 {[%clk 0:01:10]}
24. Rf7 {[%clk 0:01:49.6]} 24... Rg7 {[%clk 0:01:08.6]} 25. Qe2 {[%clk 0:01:41]}
25... Qg8 {[%clk 0:01:05]} 26. Rxg7 {[%clk 0:01:36.4]} 26... Qxg7 {[%clk
0:01:03.7]} 27. Qxg4 {[%clk 0:01:34.5]} 27... Qg6 {[%clk 0:01:03.7]} 28. Nb6
{[%clk 0:01:31.2]} 28... Bxc5 {[%clk 0:01:01.2]} 29. Nd7 {[%clk 0:01:30.8]}
29... Bxe3+ {[%clk 0:01:00.6]} 30. Kh1 {[%clk 0:01:31.4]} 30... Re8 {[%clk
0:00:48.7]} 31. Nf6 {[%clk 0:01:26.4]} 31... Rf8 {[%clk 0:00:46.4]} 32. Re1
{[%clk 0:01:18.2]} 32... d4 {[%clk 0:00:43.5]} 33. Qf3 {[%clk 0:01:15.4]} 33...
c5 {[%clk 0:00:40.2]} 34. Qc6 {[%clk 0:01:11.4]} 34... Qf5 {[%clk 0:00:25.3]}
35. Qxc5 {[%clk 0:01:10.6]} 35... Kg7 {[%clk 0:00:22]} 36. h3 {[%clk 0:00:57.7]}
36... Qf2 {[%clk 0:00:18.1]} 37. Qxa5 {[%clk 0:00:49.4]} 37... d3 {[%clk
0:00:15.6]} 38. Rd1 {[%clk 0:00:31.8]} 38... d2 {[%clk 0:00:14.8]} 39. Qc7+
{[%clk 0:00:29.3]} 39... Rf7 {[%clk 0:00:15]} 40. Qc2 {[%clk 0:00:23.3]} 40...
Qe2 {[%clk 0:00:14.7]} 41. Qxh7+ {[%clk 0:00:21.7]} 41... Kf8 {[%clk 0:00:15.1]}
42. Qg8+ {[%clk 0:00:21.2]} 42... Ke7 {[%clk 0:00:15.2]} 43. Qe8# {[%clk
0:00:21.4]} 1-0

[Event "Betsys MČR v online bleskovém šachu 2021"]
[Site "Chess.com"]
[Date "2021.04.17"]
[Round "10"]
[White "Pantata007"]
[Black "Lukuluss88"]
[Result "0-1"]
[WhiteElo "2238"]
[BlackElo "2011"]
[TimeControl "180+1"]
[EndTime "10:40:44 PDT"]
[Termination "Uživatel Lukuluss88 zvítězil na čas"]

1. d4 {[%clk 0:03:00.9]} 1... d5 {[%clk 0:02:59.4]} 2. c4 {[%clk 0:03:00.5]}
2... Nf6 {[%clk 0:02:56.6]} 3. cxd5 {[%clk 0:03:00.2]} 3... Nxd5 {[%clk
0:02:55.7]} 4. Nf3 {[%clk 0:03:00.5]} 4... Nc6 {[%clk 0:02:37]} 5. e4 {[%clk
0:02:53.4]} 5... Nb6 {[%clk 0:02:33.8]} 6. d5 {[%clk 0:02:50.2]} 6... Nb8 {[%clk
0:02:30.9]} 7. Nc3 {[%clk 0:02:49.2]} 7... e6 {[%clk 0:02:28.5]} 8. Bb5+ {[%clk
0:02:37.6]} 8... Bd7 {[%clk 0:02:28.2]} 9. dxe6 {[%clk 0:02:29]} 9... fxe6
{[%clk 0:02:25.1]} 10. O-O {[%clk 0:02:15.9]} 10... a6 {[%clk 0:02:21.7]} 11.
Bxd7+ {[%clk 0:02:06]} 11... Qxd7 {[%clk 0:02:21.3]} 12. Qb3 {[%clk 0:02:05.7]}
12... Bd6 {[%clk 0:02:04.3]} 13. e5 {[%clk 0:02:00.1]} 13... Be7 {[%clk
0:01:59.7]} 14. Rd1 {[%clk 0:01:59.7]} 14... Qc8 {[%clk 0:01:59.1]} 15. Nd4
{[%clk 0:01:47.5]} 15... O-O {[%clk 0:01:57.4]} 16. Nxe6 {[%clk 0:01:46.1]}
16... Rf5 {[%clk 0:01:52.3]} 17. Nxc7+ {[%clk 0:01:25.6]} 17... Kh8 {[%clk
0:01:45.1]} 18. Qxb6 {[%clk 0:01:14.2]} 18... Nd7 {[%clk 0:01:41.8]} 19. Qd4
{[%clk 0:00:45]} 19... Bc5 {[%clk 0:01:26.7]} 20. Qxd7 {[%clk 0:00:42]} 20...
Bxf2+ {[%clk 0:01:22.5]} 21. Kh1 {[%clk 0:00:41.4]} 21... Qxd7 {[%clk
0:01:21.7]} 22. Rxd7 {[%clk 0:00:36.3]} 22... Bb6 {[%clk 0:00:51.5]} 23. Bd2
{[%clk 0:00:24.9]} 23... Raf8 {[%clk 0:00:49.1]} 24. h3 {[%clk 0:00:13.6]} 24...
h5 {[%clk 0:00:33.2]} 25. Ne6 {[%clk 0:00:12.9]} 25... Rf1+ {[%clk 0:00:31.6]}
26. Rxf1 {[%clk 0:00:11.9]} 26... Rxf1+ {[%clk 0:00:31.3]} 27. Kh2 {[%clk
0:00:12.8]} 27... h4 {[%clk 0:00:29.3]} 28. g4 {[%clk 0:00:02.3]} 28... Rf2+
{[%clk 0:00:19]} 29. Kh1 {[%clk 0:00:02.7]} 29... Rf1+ {[%clk 0:00:18.8]} 30.
Kg2 {[%clk 0:00:02.9]} 30... Rf2+ {[%clk 0:00:18.6]} 31. Kg1 {[%clk 0:00:01.2]}
31... Rxd2+ {[%clk 0:00:18.6]} 32. Kf1 {[%clk 0:00:01.2]} 32... Rxd7 {[%clk
0:00:17.9]} 0-1

[Event "Betsys MČR v online bleskovém šachu 2021"]
[Site "Chess.com"]
[Date "2021.04.17"]
[Round "10"]
[White "TCTCGTGCTATG"]
[Black "FBingoPlayer"]
[Result "0-1"]
[WhiteElo "1921"]
[BlackElo "2177"]
[TimeControl "180+1"]
[EndTime "10:40:46 PDT"]
[Termination "Uživatel FBingoPlayer zvítězil matem"]

1. e4 {[%clk 0:03:00.9]} 1... e6 {[%clk 0:02:58.2]} 2. d4 {[%clk 0:03:00]} 2...
d5 {[%clk 0:02:58.8]} 3. Nd2 {[%clk 0:02:58.9]} 3... Nf6 {[%clk 0:02:58.1]} 4.
e5 {[%clk 0:02:58.6]} 4... Nfd7 {[%clk 0:02:58.4]} 5. Bd3 {[%clk 0:02:58.3]}
5... c5 {[%clk 0:02:58.8]} 6. c3 {[%clk 0:02:58]} 6... Nc6 {[%clk 0:02:59.3]} 7.
Ne2 {[%clk 0:02:57.9]} 7... Be7 {[%clk 0:02:59.8]} 8. Nf3 {[%clk 0:02:57.3]}
8... h6 {[%clk 0:02:59.8]} 9. O-O {[%clk 0:02:57.1]} 9... a6 {[%clk 0:02:59.7]}
10. a3 {[%clk 0:02:49.4]} 10... b6 {[%clk 0:02:58.6]} 11. Bb1 {[%clk 0:02:47.7]}
11... Bb7 {[%clk 0:02:58.1]} 12. Nf4 {[%clk 0:02:35.3]} 12... Qc7 {[%clk
0:02:57.8]} 13. Re1 {[%clk 0:02:25.7]} 13... O-O-O {[%clk 0:02:57.3]} 14. b4
{[%clk 0:02:22.2]} 14... c4 {[%clk 0:02:53.3]} 15. a4 {[%clk 0:02:19.1]} 15...
g5 {[%clk 0:02:48.9]} 16. Ne2 {[%clk 0:02:16.7]} 16... g4 {[%clk 0:02:35.8]} 17.
Nd2 {[%clk 0:02:14.2]} 17... f6 {[%clk 0:02:32.2]} 18. b5 {[%clk 0:02:13.4]}
18... axb5 {[%clk 0:02:24.4]} 19. axb5 {[%clk 0:02:11.9]} 19... Na5 {[%clk
0:02:24.9]} 20. Nf4 {[%clk 0:02:04.6]} 20... fxe5 {[%clk 0:02:14.1]} 21. Nxe6
{[%clk 0:02:01.4]} 21... Qd6 {[%clk 0:02:10.4]} 22. Nxd8 {[%clk 0:02:00.7]}
22... Bxd8 {[%clk 0:02:08.9]} 23. dxe5 {[%clk 0:01:57.7]} 23... Nxe5 {[%clk
0:02:05.8]} 24. Ne4 {[%clk 0:01:51.6]} 24... Qc7 {[%clk 0:01:51.7]} 25. Ng3
{[%clk 0:01:49.2]} 25... h5 {[%clk 0:01:51.1]} 26. Bf4 {[%clk 0:01:46.2]} 26...
Bf6 {[%clk 0:01:49.8]} 27. Bf5+ {[%clk 0:01:43.8]} 27... Kb8 {[%clk 0:01:49.5]}
28. Qc2 {[%clk 0:01:31]} 28... Nf3+ {[%clk 0:01:34.7]} 29. gxf3 {[%clk
0:01:25.8]} 29... Qxf4 {[%clk 0:01:34.5]} 30. Re6 {[%clk 0:01:17.5]} 30... Bd8
{[%clk 0:01:25.6]} 31. Rae1 {[%clk 0:01:06.9]} 31... h4 {[%clk 0:01:16.7]} 32.
Ne2 {[%clk 0:00:56.2]} 32... Qxf3 {[%clk 0:00:57.7]} 33. Rg6 {[%clk 0:00:50.4]}
33... d4 {[%clk 0:00:50.7]} 34. Rc6 {[%clk 0:00:22]} 34... d3 {[%clk 0:00:41.5]}
35. Qd2 {[%clk 0:00:20.3]} 35... Nxc6 {[%clk 0:00:36.4]} 36. Nf4 {[%clk
0:00:20.1]} 36... Ne7 {[%clk 0:00:21.9]} 37. Be4 {[%clk 0:00:15.6]} 37... Bxe4
{[%clk 0:00:21]} 38. Rxe4 {[%clk 0:00:15.4]} 38... Qxe4 {[%clk 0:00:21.9]} 39.
Kf1 {[%clk 0:00:14.2]} 39... Bc7 {[%clk 0:00:18.7]} 40. Ng2 {[%clk 0:00:12.4]}
40... h3 {[%clk 0:00:17.6]} 41. Ne3 {[%clk 0:00:11.8]} 41... Qh1# {[%clk
0:00:16.8]} 0-1

[Event "Betsys MČR v online bleskovém šachu 2021"]
[Site "Chess.com"]
[Date "2021.04.17"]
[Round "10"]
[White "bezzuton"]
[Black "Bartusman"]
[Result "0-1"]
[WhiteElo "1541"]
[BlackElo "1981"]
[TimeControl "180+1"]
[EndTime "10:40:46 PDT"]
[Termination "Uživatel Bartusman zvítězil po vzdání soupeře"]

1. d4 {[%clk 0:02:53.4]} 1... e6 {[%clk 0:03:00]} 2. e4 {[%clk 0:02:52.4]} 2...
b6 {[%clk 0:02:59.7]} 3. Nc3 {[%clk 0:02:50.1]} 3... Bb7 {[%clk 0:03:00.3]} 4.
f4 {[%clk 0:02:43.4]} 4... g6 {[%clk 0:02:56]} 5. Nf3 {[%clk 0:02:38.7]} 5...
Bg7 {[%clk 0:02:56.3]} 6. g4 {[%clk 0:02:34.4]} 6... Nf6 {[%clk 0:02:53.5]} 7.
Bd3 {[%clk 0:02:31.2]} 7... Nxg4 {[%clk 0:02:52.9]} 8. h3 {[%clk 0:02:25.5]}
8... Nf6 {[%clk 0:02:51.2]} 9. Be3 {[%clk 0:02:19.8]} 9... O-O {[%clk
0:02:42.5]} 10. Qe2 {[%clk 0:02:13.8]} 10... Nc6 {[%clk 0:02:24.8]} 11. e5
{[%clk 0:02:09.2]} 11... Nh5 {[%clk 0:02:22.4]} 12. Ng5 {[%clk 0:02:08.5]} 12...
Ng3 {[%clk 0:02:19.7]} 13. Qg2 {[%clk 0:02:03.5]} 13... Nxh1 {[%clk 0:02:19.6]}
14. Qxh1 {[%clk 0:02:03.1]} 14... Rb8 {[%clk 0:02:03.7]} 15. Be4 {[%clk
0:01:53.5]} 15... Na5 {[%clk 0:01:54.4]} 16. Bxb7 {[%clk 0:01:50.5]} 16... Nxb7
{[%clk 0:01:54.3]} 17. h4 {[%clk 0:01:48.4]} 17... h5 {[%clk 0:01:53.6]} 18.
O-O-O {[%clk 0:01:45.8]} 18... c5 {[%clk 0:01:53.5]} 19. d5 {[%clk 0:01:43.2]}
19... Qc8 {[%clk 0:01:36.2]} 20. Rg1 {[%clk 0:01:14.4]} 20... Na5 {[%clk
0:01:34.1]} 21. f5 {[%clk 0:01:06.6]} 21... exf5 {[%clk 0:01:31]} 22. Nxf7
{[%clk 0:00:59.6]} 22... Rxf7 {[%clk 0:01:26]} 23. Rxg6 {[%clk 0:00:58.6]} 23...
Kh7 {[%clk 0:01:17.4]} 24. Qg2 {[%clk 0:00:54.4]} 24... Nc4 {[%clk 0:01:09.5]}
25. Bf4 {[%clk 0:00:43.3]} 25... Nxe5 {[%clk 0:00:40.8]} 26. Bxe5 {[%clk
0:00:38.9]} 26... Bxe5 {[%clk 0:00:40.5]} 27. Qg5 {[%clk 0:00:35.5]} 27... Bg7
{[%clk 0:00:38.6]} 28. Qxh5+ {[%clk 0:00:32.4]} 28... Kg8 {[%clk 0:00:38.6]} 29.
Ne2 {[%clk 0:00:28.6]} 29... Qe8 {[%clk 0:00:28.5]} 30. Qf3 {[%clk 0:00:21.3]}
30... Qe4 {[%clk 0:00:26.1]} 31. Qf2 {[%clk 0:00:19.3]} 31... Re8 {[%clk
0:00:22]} 32. Rg2 {[%clk 0:00:17.4]} 32... Rfe7 {[%clk 0:00:17]} 33. Qg3 {[%clk
0:00:13.7]} 33... Kf8 {[%clk 0:00:15.3]} 34. h5 {[%clk 0:00:11.8]} 34... Qe3+
{[%clk 0:00:15.6]} 35. Qxe3 {[%clk 0:00:10.8]} 35... Rxe3 {[%clk 0:00:15.9]} 0-1